bitfinex-derivatives/quotes_BTCF0:USTF0_20241224
["timestamp","ask_amount","ask_price","bid_price","bid_amount"]
[1735046164519,0.05249949,94542.0,94541.0,0.013]
[1735046167419,0.05249949,94542.0,94541.0,0.065969]
[1735046167622,0.00259949,94542.0,94541.0,0.065969]
[1735046167822,0.25382495,94560.0,94554.0,0.052961]
[1735046168130,0.25382495,94560.0,94554.0,0.413761]
[1735046169326,0.12688104,94566.0,94565.0,0.052955]
[1735046169627,0.12688104,94566.0,94565.0,0.713755]
[1735046169628,0.02464304,94566.0,94565.0,0.713755]
[1735046170630,0.02464304,94566.0,94565.0,0.413755]
[1735046170919,0.052941,94590.0,94578.0,0.052948]
[1735046171118,0.052941,94590.0,94588.0,0.3608]
[1735046171513,0.12533782,94590.0,94588.0,0.3608]
[1735046172326,0.0325,94589.0,94588.0,0.3608]
[1735046173228,0.0305,94589.0,94588.0,0.3608]
[1735046173413,0.0325,94589.0,94588.0,0.3608]
[1735046175321,0.0335,94589.0,94588.0,0.3608]
[1735046175922,0.0325,94589.0,94579.0,0.10752977]
[1735046176121,0.052942,94588.0,94578.0,0.3608]
[1735046177228,0.052942,94588.0,94578.0,0.46832977]
[1735046177422,0.052942,94588.0,94578.0,0.46932977]
[1735046177624,0.0305,94589.0,94587.0,0.3608]
[1735046177820,0.0305,94589.0,94578.0,0.46932977]
[1735046178132,0.0305,94589.0,94586.0,0.3608]
[1735046178519,0.07239682,94588.0,94586.0,0.3608]
[1735046179531,0.07239682,94588.0,94578.0,0.36184]
[1735046179738,0.052944,94586.0,94578.0,0.3608]
[1735046179924,0.001,94588.0,94578.0,0.3608]
[1735046180431,0.001,94588.0,94578.0,0.46832977]
[1735046180626,0.0305,94589.0,94578.0,0.46832977]
[1735046180823,0.001,94588.0,94578.0,0.47032977]
[1735046181434,0.0305,94589.0,94578.0,0.47032977]
[1735046181625,0.0305,94589.0,94578.0,0.47132977]
[1735046183426,0.0305,94589.0,94580.0,0.052947]
[1735046184022,0.0305,94589.0,94578.0,0.47228977]
[1735046184023,0.0305,94589.0,94586.0,0.3608]
[1735046184629,0.0305,94589.0,94578.0,0.3638]
[1735046184835,0.052947,94579.0,94578.0,0.3131]
[1735046185025,0.052947,94579.0,94578.0,0.2616]
[1735046185226,0.12534382,94579.0,94578.0,0.2616]
[1735046185535,0.12534382,94579.0,94578.0,0.002]
[1735046185729,0.07239682,94579.0,94570.0,0.3608]
[1735046185934,0.05295,94574.0,94570.0,0.3608]
[1735046186236,0.0309,94578.0,94570.0,0.3608]
[1735046186756,0.052952,94572.0,94570.0,0.3608]
[1735046186927,0.052952,94572.0,94570.0,0.3668]
[1735046187429,0.052952,94572.0,94570.0,0.3608]
[1735046187735,0.052952,94572.0,94570.0,0.3688]
[1735046189429,0.052952,94572.0,94570.0,0.008]
[1735046191732,0.001,94572.0,94570.0,0.006]
[1735046192027,0.001,94572.0,94568.0,0.3608]
[1735046192028,0.002,94572.0,94568.0,0.3608]
[1735046192631,0.001,94572.0,94568.0,0.3608]
[1735046192830,0.002,94572.0,94568.0,0.3608]
[1735046193441,0.001,94572.0,94568.0,0.3618]
[1735046194232,0.0334,94577.0,94568.0,0.3618]
[1735046197233,0.0334,94577.0,94568.0,0.414753]
[1735046199334,0.0334,94577.0,94568.0,0.60360335]
[1735046201639,0.0334,94577.0,94568.0,0.414753]
[1735046201939,0.0334,94577.0,94568.0,0.3618]
[1735046202141,0.0309,94578.0,94569.0,0.052953]
[1735046202439,0.55082391,94588.0,94568.0,0.3618]
[1735046202742,0.1894639,94588.0,94581.0,0.052946]
[1735046202945,0.13379682,94589.0,94581.0,0.052946]
[1735046203138,0.13379682,94589.0,94584.0,0.3608]
[1735046203931,0.002,94588.0,94584.0,0.3608]
[1735046204339,0.002,94588.0,94586.0,0.052943]
[1735046204539,0.001,94589.0,94587.0,0.052943]
[1735046205245,0.001,94588.0,94587.0,0.052943]
[1735046206643,0.001,94589.0,94587.0,0.052943]
[1735046207134,0.002,94588.0,94587.0,0.052943]
[1735046207533,0.003,94588.0,94587.0,0.052943]
[1735046207746,0.001,94588.0,94587.0,0.052943]
[1735046209345,0.003,94588.0,94587.0,0.052943]
[1735046212951,0.001,94588.0,94587.0,0.053943]
[1735046213450,0.07239682,94592.0,94587.0,0.055943]
[1735046214136,0.07239682,94592.0,94587.0,0.053943]
[1735046221753,0.07239682,94592.0,94587.0,0.001]
[1735046221953,0.0314,94593.0,94587.0,0.001]
[1735046222148,0.0314,94593.0,94592.0,0.3608]
[1735046223157,0.0314,94593.0,94592.0,0.41374]
[1735046223356,0.0314,94593.0,94592.0,0.3608]
[1735046223560,0.084339,94593.0,94592.0,0.3608]
[1735046223754,0.052942,94588.0,94587.0,0.001]
[1735046223951,0.0314,94593.0,94584.0,0.47825353]
[1735046224150,0.0314,94593.0,94584.0,0.3618]
[1735046224352,0.0314,94593.0,94584.0,0.3608]
[1735046224561,0.3608,94588.0,94577.0,0.25180047]
[1735046224749,0.052948,94578.0,94577.0,0.25180047]
[1735046225855,0.052948,94578.0,94577.0,0.001]
[1735046226044,0.0655,94587.0,94577.0,0.001]
[1735046226248,0.07622,94587.0,94577.0,0.001]
[1735046226444,0.003,94578.0,94565.0,0.25180047]
[1735046226660,0.05295,94575.0,94565.0,0.25180047]
[1735046226859,0.05295,94575.0,94564.0,0.25180047]
[1735046228058,0.05295,94575.0,94562.0,0.25180047]
[1735046228861,0.001,94575.0,94562.0,0.25180047]
[1735046229162,0.001,94575.0,94567.0,0.052954]
[1735046229563,0.001,94575.0,94568.0,0.052953]
[1735046229758,0.003,94575.0,94568.0,0.052953]
[1735046230151,0.001,94575.0,94568.0,0.052953]
[1735046230348,0.001,94575.0,94574.0,0.3628]
[1735046230763,0.001,94575.0,94574.0,0.3638]
[1735046231459,0.001,94575.0,94574.0,0.41675]
[1735046231664,0.001,94575.0,94574.0,0.77755]
[1735046232167,0.1894639,94594.0,94589.0,0.052942]
[1735046232463,0.1894639,94594.0,94591.0,0.3608]
[1735046232962,0.1894639,94594.0,94592.0,0.05294]
[1735046233957,0.0626,94599.0,94592.0,0.05294]
[1735046234666,0.0626,94599.0,94591.0,0.3648]
[1735046235358,0.0626,94599.0,94592.0,0.001]
[1735046236562,0.0626,94599.0,94592.0,0.002]
[1735046241970,0.00064,94602.0,94592.0,0.002]
[1735046242166,0.10752188,94610.0,94600.0,0.3608]
[1735046242366,0.16045188,94610.0,94600.0,0.3608]
[1735046242564,0.052931,94609.0,94600.0,0.3608]
[1735046242760,0.10752188,94610.0,94600.0,0.3608]
[1735046243070,0.11794102,94610.0,94592.0,0.003]
[1735046243264,0.10752188,94602.0,94592.0,0.003]
[1735046243468,0.033,94601.0,94592.0,0.003]
[1735046243774,0.0647,94601.0,94594.0,0.25180047]
[1735046244767,0.0647,94601.0,94592.0,0.002]
[1735046245177,0.0647,94601.0,94592.0,0.05494]
[1735046245475,0.0647,94601.0,94592.0,0.05594]
[1735046246275,0.0647,94601.0,94594.0,0.001]
[1735046246876,0.0647,94601.0,94592.0,0.05594]
[1735046247376,0.0647,94601.0,94594.0,0.001]
[1735046248778,0.0647,94601.0,94596.0,0.052937]
[1735046250578,0.0647,94601.0,94598.0,0.3608]
[1735046251377,0.11794102,94610.0,94598.0,0.3608]
[1735046251792,0.11794102,94610.0,94604.0,0.052933]
[1735046252083,0.001,94601.0,94598.0,0.413737]
[1735046252485,0.001,94601.0,94600.0,0.052936]
[1735046252783,0.052931,94609.0,94600.0,0.052936]
[1735046252979,0.10852188,94610.0,94600.0,0.052936]
[1735046253181,0.052931,94608.0,94600.0,0.052936]
[1735046253680,0.001,94601.0,94600.0,0.052936]
[1735046255076,0.001,94608.0,94607.0,0.052931]
[1735046255883,0.3608,94612.0,94611.0,0.052929]
[1735046258086,0.0641,94618.0,94611.0,0.3608]
[1735046258287,0.001,94612.0,94611.0,0.413729]
[1735046259188,0.0651,94618.0,94613.0,0.052928]
[1735046259980,0.0641,94618.0,94613.0,0.052928]
[1735046260180,0.0641,94618.0,94614.0,0.052928]
[1735046261480,0.0651,94618.0,94614.0,0.052928]
[1735046262193,0.0641,94618.0,94614.0,0.052928]
[1735046262383,0.0651,94618.0,94614.0,0.052928]
[1735046263481,0.0651,94618.0,94611.0,0.3608]
[1735046263683,0.0651,94618.0,94616.0,0.052926]
[1735046264089,0.001,94618.0,94617.0,0.052926]
[1735046264585,0.01042631,94624.0,94617.0,0.052926]
[1735046264887,0.002,94618.0,94611.0,0.3608]
[1735046265391,0.36140001,94625.0,94611.0,0.3608]
[1735046265581,0.002,94618.0,94611.0,0.3608]
[1735046266090,0.0661,94629.0,94611.0,0.3608]
[1735046266281,0.0661,94629.0,94619.0,0.413725]
[1735046266479,0.0661,94629.0,94623.0,0.052923]
[1735046266682,0.0661,94629.0,94627.0,0.3608]
[1735046267382,0.0326,94629.0,94628.0,0.05292]
[1735046267782,0.0336,94629.0,94628.0,0.05292]
[1735046268484,0.0326,94629.0,94628.0,0.05292]
[1735046268792,0.0366,94629.0,94628.0,0.05292]
[1735046269302,0.08952,94629.0,94627.0,0.001]
[1735046269481,0.0366,94629.0,94628.0,0.001]
[1735046269793,0.089519,94629.0,94628.0,0.001]
[1735046270678,0.085519,94629.0,94628.0,0.001]
[1735046270881,0.089519,94629.0,94628.0,0.001]
[1735046271085,0.052921,94626.0,94616.0,0.01045524]
[1735046271298,0.052922,94625.0,94615.0,0.052927]
[1735046272282,0.0704951,94626.0,94615.0,0.052927]
[1735046272478,0.0704951,94626.0,94613.0,0.37166965]
[1735046272887,0.0704951,94626.0,94622.0,0.3608]
[1735046273084,0.08752,94629.0,94622.0,0.3608]
[1735046273286,0.08752,94629.0,94615.0,0.004]
[1735046273689,0.08752,94629.0,94613.0,0.37166965]
[1735046273894,0.08752,94629.0,94621.0,0.413724]
[1735046273895,0.0326,94629.0,94621.0,0.413724]
[1735046274390,0.0326,94629.0,94621.0,0.3608]
[1735046274391,0.085519,94629.0,94621.0,0.3608]
[1735046277296,0.0326,94629.0,94621.0,0.3618]
[1735046277596,0.0326,94629.0,94621.0,0.3638]
[1735046277991,0.0326,94629.0,94621.0,0.3628]
[1735046281499,0.052922,94625.0,94621.0,0.3628]
[1735046282799,0.052922,94625.0,94621.0,0.3618]
[1735046283194,0.413723,94622.0,94621.0,0.001]
[1735046283400,0.052925,94620.0,94615.0,0.25180047]
[1735046283598,0.0336,94619.0,94615.0,0.25180047]
[1735046284902,0.0336,94619.0,94614.0,0.66648747]
[1735046285102,0.0336,94619.0,94615.0,0.001]
[1735046285604,0.0336,94619.0,94618.0,0.052926]
[1735046287005,0.0336,94619.0,94618.0,0.054926]
[1735046287205,0.0336,94619.0,94618.0,0.002]
[1735046287408,0.0336,94619.0,94618.0,0.004]
[1735046287703,0.3608,94622.0,94620.0,0.052924]
[1735046289106,0.08552,94629.0,94620.0,0.052924]
[1735046289491,0.0326,94629.0,94619.0,0.25180047]
[1735046289815,0.0326,94629.0,94623.0,0.052923]
[1735046289997,0.0326,94629.0,94620.0,0.002]
[1735046290196,0.085519,94629.0,94620.0,0.002]
[1735046290398,0.052923,94623.0,94621.0,0.25180047]
[1735046290794,0.0334,94622.0,94621.0,0.25180047]
[1735046291699,0.0334,94622.0,94620.0,0.002]
[1735046292203,0.0334,94622.0,94619.0,0.25180047]
[1735046292406,0.0334,94622.0,94620.0,0.002]
[1735046292606,0.052924,94621.0,94620.0,0.002]
[1735046292803,0.052924,94621.0,94619.0,0.25180047]
[1735046293107,0.052924,94621.0,94618.0,0.25180047]
[1735046293607,0.052924,94621.0,94619.0,0.001]
[1735046294505,0.052924,94620.0,94619.0,0.001]
[1735046295798,0.052924,94620.0,94619.0,0.002]
[1735046296402,0.052926,94617.0,94616.0,0.25180047]
[1735046297510,0.052927,94615.0,94612.0,0.25180047]
[1735046297804,0.052928,94613.0,94612.0,0.25180047]
[1735046298198,0.001,94617.0,94612.0,0.25180047]
[1735046298394,0.053927,94617.0,94612.0,0.25180047]
[1735046298804,0.001,94617.0,94611.0,0.25180047]
[1735046299111,0.052927,94616.0,94612.0,0.001]
[1735046299609,0.052927,94616.0,94611.0,0.25180047]
[1735046299802,0.1038951,94622.0,94613.0,0.25180047]
[1735046300902,0.052926,94617.0,94613.0,0.25180047]
[1735046301208,0.052926,94617.0,94613.0,0.25280047]
[1735046301410,0.052928,94614.0,94613.0,0.25280047]
[1735046301894,0.052928,94614.0,94613.0,0.25380047]
[1735046302309,0.052928,94614.0,94613.0,0.003]
[1735046302898,0.052928,94614.0,94613.0,0.001]
[1735046303499,0.052928,94614.0,94611.0,0.25180047]
[1735046303702,0.0334,94622.0,94612.0,0.3608]
[1735046304007,0.052927,94616.0,94612.0,0.3608]
[1735046304310,0.052927,94616.0,94613.0,0.25180047]
[1735046304811,0.00056001,94623.0,94617.0,0.052926]
[1735046305013,0.052921,94626.0,94621.0,0.3608]
[1735046305200,0.052921,94626.0,94617.0,0.052926]
[1735046305511,0.052921,94626.0,94621.0,0.3608]
[1735046306219,0.053921,94626.0,94621.0,0.3608]
[1735046306410,0.001,94626.0,94621.0,0.3608]
[1735046307007,0.13416191,94630.0,94621.0,0.3608]
[1735046311306,0.13416191,94630.0,94621.0,0.61278396]
[1735046312709,0.13416191,94630.0,94621.0,0.3608]
[1735046313912,0.05292,94628.0,94621.0,0.3608]
[1735046314106,0.08124291,94630.0,94620.0,0.25198396]
[1735046314306,0.052924,94621.0,94620.0,0.25198396]
[1735046315216,0.052927,94616.0,94614.0,0.25198396]
[1735046315408,0.0324,94615.0,94614.0,0.25198396]
[1735046316408,0.0324,94615.0,94614.0,0.25298396]
[1735046316619,0.0324,94615.0,94614.0,0.001]
[1735046318222,0.0324,94615.0,94612.0,0.3608]
[1735046319308,0.0324,94615.0,94612.0,0.3618]
[1735046319704,0.0324,94615.0,94612.0,0.001]
[1735046319909,0.052928,94613.0,94612.0,0.001]
[1735046321308,0.052931,94609.0,94608.0,0.25198396]
[1735046321909,0.052932,94607.0,94604.0,0.25198396]
[1735046322109,0.052932,94606.0,94604.0,0.25198396]
[1735046322521,0.052933,94605.0,94604.0,0.25198396]
[1735046323120,0.052933,94605.0,94603.0,0.3608]
[1735046323416,0.052933,94604.0,94603.0,0.3608]
[1735046324211,0.0342,94613.0,94603.0,0.3608]
[1735046324212,0.1046951,94613.0,94604.0,0.002]
[1735046324412,0.052931,94609.0,94604.0,0.002]
[1735046325009,0.052931,94609.0,94603.0,0.3678]
[1735046325717,0.052931,94609.0,94604.0,0.005]
[1735046325912,0.052931,94609.0,94604.0,0.007]
[1735046327520,0.052931,94609.0,94604.0,0.005]
[1735046327912,0.052931,94609.0,94603.0,0.007]
[1735046328319,0.3608,94612.0,94601.0,0.052935]
[1735046328511,0.3608,94612.0,94604.0,0.007]
[1735046329014,0.3608,94612.0,94604.0,0.002]
[1735046329318,0.3608,94612.0,94603.0,0.007]
[1735046329514,0.3608,94612.0,94603.0,0.002]
[1735046329722,0.3608,94612.0,94604.0,0.005]
[1735046330816,0.3608,94612.0,94604.0,0.007]
[1735046331018,0.3608,94612.0,94604.0,0.002]
[1735046331716,0.052929,94611.0,94604.0,0.007]
[1735046333324,0.052931,94608.0,94604.0,0.007]
[1735046333721,0.052932,94607.0,94604.0,0.007]
[1735046335320,0.3608,94612.0,94604.0,0.005]
[1735046335523,0.052932,94606.0,94604.0,0.007]
[1735046335717,0.052933,94605.0,94604.0,0.007]
[1735046338623,0.052933,94605.0,94604.0,0.002]
[1735046338824,0.052933,94605.0,94604.0,0.007]
[1735046342829,0.06341456,94605.0,94604.0,0.007]
[1735046346724,0.06341456,94605.0,94604.0,0.005]
[1735046346920,0.06341456,94605.0,94604.0,0.006]
[1735046347124,0.06341456,94605.0,94604.0,0.001]
[1735046347335,0.06341456,94605.0,94604.0,0.004]
[1735046347629,0.06541456,94605.0,94604.0,0.19212668]
[1735046347836,0.06541456,94605.0,94604.0,0.18912668]
[1735046349624,0.052934,94603.0,94602.0,0.18912668]
[1735046350727,0.054934,94603.0,94602.0,0.18912668]
[1735046351126,0.002,94603.0,94602.0,0.18912668]
[1735046353235,0.001,94603.0,94602.0,0.18912668]
[1735046354133,0.06341456,94605.0,94602.0,0.18912668]
[1735046354342,0.001,94603.0,94602.0,0.18912668]
[1735046354741,0.001,94603.0,94598.0,0.61382396]
[1735046354936,0.001,94603.0,94598.0,0.61278396]
[1735046356241,0.052936,94599.0,94598.0,0.61278396]
[1735046357840,0.053936,94599.0,94598.0,0.61278396]
[1735046358838,0.001,94599.0,94598.0,0.61278396]
[1735046359444,0.052934,94603.0,94598.0,0.61278396]
[1735046359631,0.001,94599.0,94598.0,0.61278396]
[1735046360339,0.052935,94602.0,94598.0,0.3608]
[1735046361144,0.001,94599.0,94598.0,0.3608]
[1735046362552,0.052936,94599.0,94598.0,0.3608]
[1735046363438,0.053936,94599.0,94598.0,0.3608]
[1735046365149,0.001,94599.0,94594.0,0.3608]
[1735046365348,0.052938,94595.0,94594.0,0.3608]
[1735046365752,0.052942,94588.0,94587.0,0.3787092]
[1735046366253,0.052944,94585.0,94584.0,0.3787092]
[1735046367448,0.052946,94581.0,94580.0,0.18913611]
[1735046368654,0.052946,94581.0,94579.0,0.00158578]
[1735046369446,0.052946,94581.0,94580.0,0.005]
[1735046369853,0.052946,94581.0,94579.0,0.00158578]
[1735046370151,0.052946,94581.0,94580.0,0.002]
[1735046370543,0.038466,94581.0,94580.0,0.007]
[1735046370940,0.038466,94581.0,94580.0,0.002]
[1735046371655,0.038466,94581.0,94579.0,0.00958578]
[1735046371854,0.04917329,94581.0,94579.0,0.00958578]
[1735046372551,0.05117329,94581.0,94579.0,0.00758578]
[1735046373245,0.05117329,94581.0,94580.0,0.005]
[1735046373652,0.05117329,94581.0,94579.0,0.00158578]
[1735046375653,0.01270729,94581.0,94579.0,0.00158578]
[1735046376550,0.002,94581.0,94579.0,0.05453278]
[1735046377149,0.002,94581.0,94579.0,0.05753278]
[1735046377751,0.0637543,94587.0,94579.0,0.05753278]
[1735046377950,0.052946,94581.0,94579.0,0.00458578]
[1735046378660,0.052946,94581.0,94579.0,0.00558578]
[1735046379356,0.053946,94581.0,94579.0,0.00358578]
[1735046381458,0.053946,94581.0,94579.0,0.00658578]
[1735046382946,0.053946,94581.0,94579.0,0.00158578]
[1735046383862,0.001,94581.0,94579.0,0.00158578]
[1735046384055,0.052944,94586.0,94579.0,0.00158578]
[1735046384361,0.001,94581.0,94579.0,0.00158578]
[1735046384852,0.001,94581.0,94580.0,0.052947]
[1735046385053,0.001,94586.0,94583.0,0.052945]
[1735046385250,0.001,94586.0,94585.0,0.3608]
[1735046385558,0.001,94586.0,94585.0,0.413744]
[1735046385951,0.052938,94595.0,94585.0,0.413744]
[1735046386152,0.10753777,94600.0,94594.0,0.3608]
[1735046387158,0.16047377,94600.0,94594.0,0.3608]
[1735046387355,0.16047377,94600.0,94594.0,0.3618]
[1735046388056,0.0105659,94605.0,94594.0,0.3618]
[1735046388265,0.004,94600.0,94594.0,0.414739]
[1735046389061,0.052934,94603.0,94594.0,0.414739]
[1735046390161,0.052934,94603.0,94594.0,0.60387511]
[1735046390863,0.004,94600.0,94594.0,0.60387511]
[1735046391564,0.052935,94602.0,94594.0,0.60387511]
[1735046392365,0.004,94600.0,94594.0,0.60387511]
[1735046393969,0.052935,94602.0,94594.0,0.414739]
[1735046394264,0.056935,94602.0,94594.0,0.3618]
[1735046394468,0.056935,94602.0,94596.0,0.052938]
[1735046394858,0.004,94600.0,94596.0,0.052938]
[1735046395657,0.056935,94602.0,94596.0,0.052938]
[1735046396162,0.056935,94602.0,94596.0,0.053938]
[1735046396555,0.056935,94602.0,94596.0,0.052938]
[1735046396755,0.056935,94602.0,94596.0,0.053938]
[1735046397165,0.056935,94602.0,94596.0,0.052938]
[1735046397365,0.004,94600.0,94596.0,0.053938]
[1735046398166,0.004,94602.0,94596.0,0.001]
[1735046398362,0.004,94602.0,94600.0,0.052935]
[1735046398555,0.004,94602.0,94596.0,0.001]
[1735046398756,0.052936,94600.0,94596.0,0.001]
[1735046398962,0.056936,94600.0,94596.0,0.001]
[1735046400567,0.052936,94600.0,94596.0,0.001]
[1735046401371,0.056936,94600.0,94596.0,0.001]
[1735046404956,0.052936,94599.0,94596.0,0.001]
[1735046406162,0.004,94600.0,94596.0,0.053938]
[1735046406668,0.004,94599.0,94596.0,0.053938]
[1735046406862,0.05293,94610.0,94601.0,0.052935]
[1735046407061,0.05293,94610.0,94606.0,0.3608]
[1735046407466,0.084527,94616.0,94608.0,0.052931]
[1735046407773,0.052929,94612.0,94608.0,0.052931]
[1735046408269,0.004,94610.0,94606.0,0.3618]
[1735046409275,0.004,94610.0,94606.0,0.3628]
[1735046409665,0.052929,94611.0,94606.0,0.3618]
[1735046409972,0.052931,94609.0,94608.0,0.001]
[1735046410563,0.052934,94604.0,94602.0,0.18913611]
[1735046410770,0.0326,94603.0,94602.0,0.18913611]
[1735046410972,0.0326,94603.0,94597.0,0.18913611]
[1735046411174,0.052936,94599.0,94597.0,0.18913611]
[1735046411368,0.0665,94598.0,94597.0,0.18913611]
[1735046413173,0.0665,94598.0,94595.0,0.3608]
[1735046413476,0.052938,94597.0,94595.0,0.3608]
[1735046414570,0.052938,94597.0,94595.0,0.3618]
[1735046414767,0.052938,94597.0,94595.0,0.3628]
[1735046415568,0.052938,94597.0,94596.0,0.25218149]
[1735046416780,0.052938,94597.0,94596.0,0.25318149]
[1735046418071,0.052938,94597.0,94596.0,0.001]
[1735046419275,0.052939,94594.0,94590.0,0.25218149]
[1735046420073,0.052939,94594.0,94591.0,0.25218149]
[1735046420281,0.05294,94593.0,94591.0,0.25218149]
[1735046421777,0.0665,94598.0,94591.0,0.25218149]
[1735046421973,0.052937,94597.0,94591.0,0.25218149]
[1735046422180,0.0665,94598.0,94594.0,0.3608]
[1735046423182,0.119437,94598.0,94594.0,0.3608]
[1735046423388,0.052938,94597.0,94594.0,0.3618]
[1735046423681,0.052938,94597.0,94596.0,0.18907848]
[1735046424885,0.052938,94597.0,94595.0,0.18907848]
[1735046425980,0.052939,94594.0,94593.0,0.18907848]
[1735046426278,0.413739,94594.0,94593.0,0.18907848]
[1735046426681,0.3608,94594.0,94584.0,0.18907848]
[1735046426887,0.052943,94586.0,94584.0,0.18907848]
[1735046427787,0.052943,94587.0,94582.0,0.18907848]
[1735046428084,0.052945,94584.0,94582.0,0.18907848]
[1735046429080,0.052945,94584.0,94583.0,0.18907848]
[1735046430081,0.052945,94584.0,94582.0,0.19007848]
[1735046430285,0.052945,94584.0,94583.0,0.002]
[1735046430477,0.052945,94584.0,94583.0,0.003]
[1735046431678,0.052945,94584.0,94583.0,0.001]
[1735046432288,0.052946,94582.0,94581.0,0.25218149]
[1735046433086,0.05294,94593.0,94580.0,0.38276583]
[1735046433287,0.052946,94581.0,94580.0,0.38276583]
[1735046434286,0.052946,94581.0,94580.0,0.13058434]
[1735046435588,0.052946,94581.0,94580.0,0.13358434]
[1735046435783,0.052943,94588.0,94586.0,0.052943]
[1735046435983,0.052943,94588.0,94587.0,0.3608]
[1735046437783,0.052943,94588.0,94587.0,0.61287233]
[1735046438681,0.052943,94588.0,94587.0,0.61387233]
[1735046438886,0.052943,94588.0,94587.0,0.3618]
[1735046439480,0.01035183,94593.0,94587.0,0.3658]
[1735046439681,0.0665,94598.0,94587.0,0.3658]
[1735046439891,0.05294,94593.0,94588.0,0.052942]
[1735046440095,0.0337,94598.0,94587.0,0.3668]
[1735046440389,0.01054774,94598.0,94592.0,0.05294]
[1735046440591,0.07052877,94602.0,94597.0,0.3608]
[1735046440789,0.052934,94604.0,94597.0,0.3608]
[1735046441484,0.07052877,94607.0,94598.0,0.3608]
[1735046441682,0.07052877,94607.0,94606.0,0.3608]
[1735046441890,0.0661,94609.0,94606.0,0.3608]
[1735046442396,0.0637367,94612.0,94606.0,0.3608]
[1735046442691,0.0637367,94612.0,94602.0,0.052934]
[1735046442692,0.05293,94611.0,94603.0,0.25234282]
[1735046442879,0.05293,94611.0,94609.0,0.3608]
[1735046443384,0.0317,94615.0,94609.0,0.3608]
[1735046443587,0.0421183,94615.0,94609.0,0.3608]
[1735046443984,0.0421183,94615.0,94609.0,0.54999406]
[1735046445690,0.0421183,94615.0,94610.0,0.18919406]
[1735046446797,0.0421183,94615.0,94609.0,0.54999406]
[1735046447696,0.052928,94614.0,94609.0,0.54999406]
[1735046448488,0.052928,94614.0,94609.0,0.3608]
[1735046449089,0.0421183,94615.0,94609.0,0.3608]
[1735046453994,0.052922,94624.0,94614.0,0.052928]
[1735046454196,0.0334,94624.0,94610.0,0.3608]
[1735046454396,0.052924,94621.0,94610.0,0.3608]
[1735046454593,0.052924,94621.0,94620.0,0.3608]
[1735046454995,0.052924,94621.0,94610.0,0.41469]
[1735046455393,0.10745593,94620.0,94610.0,0.41373]
[1735046456205,0.052926,94618.0,94610.0,0.3608]
[1735046457198,0.052926,94617.0,94610.0,0.3608]
[1735046457494,0.052927,94616.0,94610.0,0.3608]
[1735046458700,0.052929,94613.0,94606.0,0.18919406]
[1735046459202,0.052929,94613.0,94605.0,0.3608]
[1735046460300,0.052929,94613.0,94606.0,0.18919406]
[1735046460509,0.052932,94608.0,94606.0,0.18919406]
[1735046463309,0.052932,94608.0,94605.0,0.3608]
[1735046463998,0.052932,94608.0,94605.0,0.413733]
[1735046464698,0.3608,94619.0,94605.0,0.3608]
[1735046464899,0.052928,94614.0,94609.0,0.07050648]
[1735046465104,0.0334,94624.0,94613.0,0.3608]
[1735046465304,0.0334,94624.0,94613.0,0.413728]
[1735046465603,0.052927,94616.0,94613.0,0.413728]
[1735046466106,0.04394375,94624.0,94613.0,0.60284004]
[1735046466300,0.052924,94620.0,94613.0,0.60284004]
[1735046467605,0.04394375,94624.0,94614.0,0.052927]
[1735046468009,0.09686575,94624.0,94614.0,0.052927]
[1735046468310,0.09686575,94624.0,94613.0,0.55087204]
[1735046468311,0.09686575,94624.0,94615.0,0.18911204]
[1735046468610,0.04394375,94624.0,94621.0,0.3608]
[1735046468903,0.00064,94630.0,94621.0,0.3608]
[1735046469110,0.00056001,94639.0,94627.0,0.05292]
[1735046469308,0.052916,94636.0,94627.0,0.05292]
[1735046469708,0.07050648,94640.0,94621.0,0.42786]
[1735046470010,0.052912,94642.0,94632.0,0.3608]
[1735046470909,0.052912,94642.0,94634.0,0.24202804]
[1735046472411,0.052912,94642.0,94634.0,0.24302804]
[1735046472602,0.052912,94642.0,94634.0,0.24402804]
[1735046473013,0.052912,94642.0,94634.0,0.24302804]
[1735046474111,0.052912,94642.0,94634.0,0.24202804]
[1735046475109,0.3608,94639.0,94634.0,0.18911204]
[1735046475305,0.413716,94636.0,94634.0,0.18911204]
[1735046475805,0.413716,94636.0,94621.0,0.3608]
[1735046475806,0.05292,94628.0,94627.0,0.18911204]
[1735046477107,0.052917,94634.0,94625.0,0.052921]
[1735046477511,0.10736785,94640.0,94625.0,0.052921]
[1735046477713,0.10736785,94640.0,94622.0,0.18911204]
[1735046477714,0.3608,94634.0,94622.0,0.18911204]
[1735046478300,0.10736785,94632.0,94627.0,0.18911204]
[1735046478500,0.3608,94634.0,94627.0,0.18911204]
[1735046478905,0.05292,94628.0,94627.0,0.18911204]
[1735046479508,0.05292,94628.0,94625.0,0.18911204]
[1735046480706,0.05292,94628.0,94619.0,0.25234282]
[1735046480707,0.05292,94628.0,94624.0,0.18911204]
[1735046480920,0.052917,94634.0,94628.0,0.05292]
[1735046481509,0.052917,94634.0,94627.0,0.3608]
[1735046481719,0.052917,94634.0,94629.0,0.052919]
[1735046481919,0.052917,94634.0,94630.0,0.052919]
[1735046482111,0.052917,94634.0,94631.0,0.052918]
[1735046482916,0.052913,94640.0,94627.0,0.3608]
[1735046483109,0.052914,94639.0,94636.0,0.3608]
[1735046483817,0.052914,94639.0,94636.0,0.413715]
[1735046485714,0.0657,94644.0,94637.0,0.052915]
[1735046486015,0.0657,94644.0,94638.0,0.052914]
[1735046486620,0.0657,94644.0,94639.0,0.052913]